[Event "Titled Tuesday Blitz December 13 Early 2022"]
[White "Jiganchine, Roman"]
[Black "Salman, Pavel"]
[WhiteFideId "2603667"]
[BlackFideId "24153753"]
[WhiteElo "2328"]
[BlackElo "2187"]
[Result "1/2-1/2"]
[Round "02"]
[TimeControl "180+1"]
[Date "2022.12.14"]
[WhiteClock "0:00:09"]
[BlackClock "0:00:09"]

1. e4 {[%clk 0:02:59]}  d6 {[%clk 0:03:00]} 2. d4 {[%clk 0:02:58]}  Nf6 {[%clk 0:03:01]} 3. Nc3 {[%clk 0:02:58]}  g6 {[%clk 0:03:01]} 4. Nf3 {[%clk 0:02:57]}  Bg7 {[%clk 0:03:01]} 5. Be3 {[%clk 0:02:57]}  c6 {[%clk 0:03:01]} 6. Qd2 {[%clk 0:02:54]}  b5 {[%clk 0:03:01]} 7. Bd3 {[%clk 0:02:51]}  O-O {[%clk 0:02:58]} 8. Bh6 {[%clk 0:02:48]}  Bg4 {[%clk 0:02:58]} 9. O-O-O {[%clk 0:02:29]}  b4 {[%clk 0:02:56]} 10. Ne2 {[%clk 0:02:29]}  Qa5 {[%clk 0:02:56]} 11. Kb1 {[%clk 0:02:28]}  c5 {[%clk 0:02:52]} 12. e5 {[%clk 0:02:07]}  Nd5 {[%clk 0:02:43]} 13. Bxg7 {[%clk 0:02:06]}  Kxg7 {[%clk 0:02:39]} 14. h4 {[%clk 0:02:05]}  h5 {[%clk 0:02:36]} 15. Be4 {[%clk 0:01:57]}  Be6 {[%clk 0:02:29]} 16. dxc5 {[%clk 0:01:18]}  Nc3+ {[%clk 0:02:15]} 17. Nxc3 {[%clk 0:01:17]}  bxc3 {[%clk 0:02:15]} 18. Qxc3 {[%clk 0:01:16]}  Qxa2+ {[%clk 0:02:04]} 19. Kc1 {[%clk 0:01:16]}  d5 {[%clk 0:02:01]} 20. Bd3 {[%clk 0:00:38]}  Nc6 {[%clk 0:01:58]} 21. Nd4 {[%clk 0:00:32]}  Nxd4 {[%clk 0:01:43]} 22. Qxd4 {[%clk 0:00:32]}  Rab8 {[%clk 0:01:44]} 23. Kd2 {[%clk 0:00:30]}  Qa5+ {[%clk 0:01:12]} 24. Qc3 {[%clk 0:00:29]}  Qxc3+ {[%clk 0:00:59]} 25. bxc3 {[%clk 0:00:25]}  Rfc8 {[%clk 0:01:00]} 26. Ra1 {[%clk 0:00:24]}  Rxc5 {[%clk 0:00:50]} 27. Rxa7 {[%clk 0:00:23]}  Kf8 {[%clk 0:00:51]} 28. Rha1 {[%clk 0:00:22]}  Rbc8 {[%clk 0:00:49]} 29. R1a3 {[%clk 0:00:21]}  R8c7 {[%clk 0:00:38]} 30. Rxc7 {[%clk 0:00:21]}  Rxc7 {[%clk 0:00:39]} 31. Ke3 {[%clk 0:00:21]}  Kg7 {[%clk 0:00:29]} 32. Kd4 {[%clk 0:00:20]}  f6 {[%clk 0:00:29]} 33. f4 {[%clk 0:00:20]}  Rb7 {[%clk 0:00:24]} 34. Ra1 {[%clk 0:00:19]}  Rb2 {[%clk 0:00:20]} 35. Re1 {[%clk 0:00:18]}  Ra2 {[%clk 0:00:18]} 36. g3 {[%clk 0:00:16]}  Ra4+ {[%clk 0:00:18]} 37. Ke3 {[%clk 0:00:16]}  fxe5 {[%clk 0:00:18]} 38. fxe5 {[%clk 0:00:16]}  Rg4 {[%clk 0:00:19]} 39. Kf2 {[%clk 0:00:16]}  d4 {[%clk 0:00:19]} 40. cxd4 {[%clk 0:00:16]}  Rxd4 {[%clk 0:00:20]} 41. Re4 {[%clk 0:00:15]}  Rd8 {[%clk 0:00:18]} 42. Re1 {[%clk 0:00:15]}  Bf5 {[%clk 0:00:17]} 43. Re3 {[%clk 0:00:12]}  Rc8 {[%clk 0:00:14]} 44. Bxf5 {[%clk 0:00:12]}  gxf5 {[%clk 0:00:15]} 45. c3 {[%clk 0:00:12]}  Kf7 {[%clk 0:00:15]} 46. e6+ {[%clk 0:00:12]}  Kf6 {[%clk 0:00:15]} 47. Kf3 {[%clk 0:00:12]}  Rc4 {[%clk 0:00:16]} 48. Kf2 {[%clk 0:00:11]}  Ra4 {[%clk 0:00:13]} 49. Kf3 {[%clk 0:00:11]}  Rc4 {[%clk 0:00:12]} 50. Kf2 {[%clk 0:00:10]}  Rg4 {[%clk 0:00:13]} 51. Kf3 {[%clk 0:00:10]}  Ra4 {[%clk 0:00:13]} 52. Kf2 {[%clk 0:00:11]}  Ra2+ {[%clk 0:00:14]} 53. Kf3 {[%clk 0:00:11]}  Ra1 {[%clk 0:00:14]} 54. Re2 {[%clk 0:00:11]}  Rc1 {[%clk 0:00:14]} 55. Re3 {[%clk 0:00:11]}  Rf1+ {[%clk 0:00:14]} 56. Kg2 {[%clk 0:00:11]}  Rc1 {[%clk 0:00:14]} 57. Kf2 {[%clk 0:00:11]}  Ra1 {[%clk 0:00:09]} 58. Kg2 {[%clk 0:00:11]}  Ra4 {[%clk 0:00:09]} 59. Kf3 {[%clk 0:00:10]}  Rg4 {[%clk 0:00:09]} 60. Kf2 {[%clk 0:00:10]}  Kg7 {[%clk 0:00:09]} 61. Kf3 {[%clk 0:00:10]}  Rc4 {[%clk 0:00:09]} 62. Kf2 {[%clk 0:00:09]}  Kg6 {[%clk 0:00:09]} 63. Kf3 {[%clk 0:00:09]}  Kf6 {[%clk 0:00:09]} 1/2-1/2


[Site "https://www.chess.com"]

[Event "Titled Tuesday Blitz December 13 Early 2022"]
[White "Jimenez Almeida, Luis David"]
[Black "Roebers, Jan"]
[WhiteFideId "22242244"]
[BlackFideId "1007815"]
[WhiteElo "2158"]
[BlackElo "2127"]
[Result "1-0"]
[Round "02"]
[TimeControl "180+1"]
[Date "2022.12.14"]
[WhiteClock "0:00:53"]
[BlackClock "0:01:07"]

1. e4 {[%clk 0:02:35]}  e5 {[%clk 0:02:55]} 2. Nf3 {[%clk 0:02:34]}  Nc6 {[%clk 0:02:56]} 3. Bb5 {[%clk 0:02:34]}  a6 {[%clk 0:02:55]} 4. Ba4 {[%clk 0:02:34]}  Nf6 {[%clk 0:02:55]} 5. O-O {[%clk 0:02:33]}  Be7 {[%clk 0:02:54]} 6. Re1 {[%clk 0:02:34]}  b5 {[%clk 0:02:54]} 7. Bb3 {[%clk 0:02:33]}  O-O {[%clk 0:02:54]} 8. d3 {[%clk 0:02:34]}  d5 {[%clk 0:02:48]} 9. exd5 {[%clk 0:02:30]}  Nxd5 {[%clk 0:02:48]} 10. Nc3 {[%clk 0:02:30]}  Nxc3 {[%clk 0:02:43]} 11. bxc3 {[%clk 0:02:31]}  Bd6 {[%clk 0:02:34]} 12. h3 {[%clk 0:02:30]}  Kh8 {[%clk 0:02:30]} 13. Bd5 {[%clk 0:02:30]}  Bd7 {[%clk 0:02:29]} 14. a4 {[%clk 0:02:30]}  Rb8 {[%clk 0:02:19]} 15. axb5 {[%clk 0:02:29]}  axb5 {[%clk 0:02:19]} 16. Qe2 {[%clk 0:02:29]}  Ne7 {[%clk 0:02:18]} 17. Bb3 {[%clk 0:02:28]}  Ng6 {[%clk 0:02:15]} 18. Ng5 {[%clk 0:02:26]}  Qe7 {[%clk 0:02:11]} 19. Qh5 {[%clk 0:02:25]}  h6 {[%clk 0:02:05]} 20. Nxf7+ {[%clk 0:02:23]}  Rxf7 {[%clk 0:02:05]} 21. Qxg6 {[%clk 0:02:23]}  Rf6 {[%clk 0:02:04]} 22. Qh5 {[%clk 0:01:48]}  Rf5 {[%clk 0:01:57]} 23. Qe2 {[%clk 0:01:40]}  Qf6 {[%clk 0:01:54]} 24. Bd5 {[%clk 0:01:35]}  Rf8 {[%clk 0:01:51]} 25. Be3 {[%clk 0:01:32]}  e4 {[%clk 0:01:46]} 26. Bxe4 {[%clk 0:01:24]}  Qe5 {[%clk 0:01:41]} 27. g3 {[%clk 0:01:19]}  R5f7 {[%clk 0:01:32]} 28. Bd4 {[%clk 0:01:09]}  Qg5 {[%clk 0:01:29]} 29. h4 {[%clk 0:01:06]}  Qd8 {[%clk 0:01:21]} 30. Ra8 {[%clk 0:01:00]}  Qe7 {[%clk 0:01:18]} 31. Rxf8+ {[%clk 0:01:00]}  Rxf8 {[%clk 0:01:18]} 32. Qh5 {[%clk 0:00:57]}  Qf7 {[%clk 0:01:12]} 33. Qxh6+ {[%clk 0:00:52]}  Kg8 {[%clk 0:01:07]} 34. Qh7# {[%clk 0:00:53]} 1-0


[Site "https://www.chess.com"]

[Event "Titled Tuesday Blitz December 13 Early 2022"]
[White "Johnson, Ben"]
[Black "Ronka, Erik"]
[WhiteFideId "2010917"]
[BlackFideId "505080"]
[WhiteElo "2200"]
[BlackElo "2264"]
[Result "0-1"]
[Round "02"]
[TimeControl "180+1"]
[Date "2022.12.14"]
[WhiteClock "0:00:01"]
[BlackClock "0:00:11"]

1. Nf3 {[%clk 0:02:56]}  Nf6 {[%clk 0:02:59]} 2. c4 {[%clk 0:02:53]}  g6 {[%clk 0:02:59]} 3. b3 {[%clk 0:02:53]}  Bg7 {[%clk 0:03:00]} 4. Bb2 {[%clk 0:02:54]}  O-O {[%clk 0:03:01]} 5. g3 {[%clk 0:02:54]}  c5 {[%clk 0:02:47]} 6. Bg2 {[%clk 0:02:53]}  Nc6 {[%clk 0:02:45]} 7. O-O {[%clk 0:02:53]}  d5 {[%clk 0:02:43]} 8. cxd5 {[%clk 0:02:52]}  Nxd5 {[%clk 0:02:44]} 9. Bxg7 {[%clk 0:02:51]}  Kxg7 {[%clk 0:02:44]} 10. d4 {[%clk 0:02:51]}  cxd4 {[%clk 0:02:37]} 11. Nxd4 {[%clk 0:02:52]}  Nxd4 {[%clk 0:02:36]} 12. Qxd4+ {[%clk 0:02:52]}  Nf6 {[%clk 0:02:37]} 13. Qe5 {[%clk 0:02:52]}  Qb6 {[%clk 0:02:06]} 14. Nc3 {[%clk 0:02:47]}  Be6 {[%clk 0:01:55]} 15. Rac1 {[%clk 0:02:24]}  Rac8 {[%clk 0:01:53]} 16. Na4 {[%clk 0:02:19]}  Qb4 {[%clk 0:01:40]} 17. Nc5 {[%clk 0:02:11]}  Bg4 {[%clk 0:01:38]} 18. Rc4 {[%clk 0:01:57]}  Qb6 {[%clk 0:01:22]} 19. Bxb7 {[%clk 0:01:23]}  Rxc5 {[%clk 0:01:08]} 20. Rxc5 {[%clk 0:00:57]}  Qxb7 {[%clk 0:01:07]} 21. Rc7 {[%clk 0:00:57]}  Qb6 {[%clk 0:00:46]} 22. Rxe7 {[%clk 0:00:50]}  Kg8 {[%clk 0:00:36]} 23. Rc1 {[%clk 0:00:42]}  a5 {[%clk 0:00:23]} 24. h4 {[%clk 0:00:37]}  h5 {[%clk 0:00:20]} 25. Rcc7 {[%clk 0:00:31]}  a4 {[%clk 0:00:18]} 26. Rb7 {[%clk 0:00:23]}  Qa6 {[%clk 0:00:18]} 27. Ra7 {[%clk 0:00:20]}  Qc6 {[%clk 0:00:17]} 28. Rec7 {[%clk 0:00:17]}  Qb6 {[%clk 0:00:17]} 29. bxa4 {[%clk 0:00:13]}  Bh3 {[%clk 0:00:16]} 30. Rab7 {[%clk 0:00:06]}  Qa6 {[%clk 0:00:14]} 31. f3 {[%clk 0:00:04]}  Bf5 {[%clk 0:00:12]} 32. Qc5 {[%clk 0:00:04]}  Qxe2 {[%clk 0:00:11]} 33. Qf2 {[%clk 0:00:02]}  Qd1+ {[%clk 0:00:11]} 34. Kg2 {[%clk 0:00:01]}  Qd6 {[%clk 0:00:11]} 35. a5 {[%clk 0:00:01]}  Nd5 {[%clk 0:00:11]} 0-1


[Site "https://www.chess.com"]

[Event "Titled Tuesday Blitz December 13 Early 2022"]
[White "Klepikov, Nikita"]
[Black "Khamdamova, Afruza"]
[WhiteFideId "24145220"]
[BlackFideId "14210444"]
[WhiteElo "2025"]
[BlackElo "2018"]
[Result "1-0"]
[Round "02"]
[TimeControl "180+1"]
[Date "2022.12.14"]
[WhiteClock "0:00:04"]
[BlackClock "0:00:06"]

1. e4 {[%clk 0:02:56]}  e5 {[%clk 0:02:44]} 2. Nf3 {[%clk 0:02:52]}  Nc6 {[%clk 0:02:43]} 3. Bb5 {[%clk 0:02:51]}  a6 {[%clk 0:02:39]} 4. Ba4 {[%clk 0:02:51]}  Nf6 {[%clk 0:02:37]} 5. Qe2 {[%clk 0:02:51]}  b5 {[%clk 0:02:28]} 6. Bb3 {[%clk 0:02:42]}  Bc5 {[%clk 0:02:23]} 7. c3 {[%clk 0:02:40]}  O-O {[%clk 0:02:18]} 8. d3 {[%clk 0:02:39]}  d5 {[%clk 0:02:14]} 9. Bg5 {[%clk 0:02:37]}  dxe4 {[%clk 0:02:12]} 10. dxe4 {[%clk 0:02:35]}  h6 {[%clk 0:02:12]} 11. Bh4 {[%clk 0:02:35]}  Bg4 {[%clk 0:02:05]} 12. h3 {[%clk 0:02:26]}  Bh5 {[%clk 0:02:04]} 13. g4 {[%clk 0:02:26]}  Bg6 {[%clk 0:02:04]} 14. Nbd2 {[%clk 0:01:38]}  Be7 {[%clk 0:01:39]} 15. O-O-O {[%clk 0:01:28]}  Nd7 {[%clk 0:01:31]} 16. Bg3 {[%clk 0:01:06]}  Bd6 {[%clk 0:01:18]} 17. Bd5 {[%clk 0:00:55]}  Ndb8 {[%clk 0:01:12]} 18. Nh4 {[%clk 0:00:52]}  Kh7 {[%clk 0:01:05]} 19. Nf5 {[%clk 0:00:47]}  Ra7 {[%clk 0:00:49]} 20. Qe3 {[%clk 0:00:22]}  Bxf5 {[%clk 0:00:48]} 21. gxf5 {[%clk 0:00:18]}  Qe7 {[%clk 0:00:48]} 22. f4 {[%clk 0:00:11]}  Bc5 {[%clk 0:00:44]} 23. Qf3 {[%clk 0:00:12]}  f6 {[%clk 0:00:39]} 24. Nb3 {[%clk 0:00:10]}  Bb6 {[%clk 0:00:37]} 25. Qh5 {[%clk 0:00:09]}  Be3+ {[%clk 0:00:25]} 26. Kb1 {[%clk 0:00:08]}  exf4 {[%clk 0:00:25]} 27. Bh4 {[%clk 0:00:07]}  Ne5 {[%clk 0:00:23]} 28. Rh2 {[%clk 0:00:05]}  c6 {[%clk 0:00:21]} 29. Be6 {[%clk 0:00:06]}  Nbd7 {[%clk 0:00:18]} 30. Nd4 {[%clk 0:00:05]}  Nc5 {[%clk 0:00:15]} 31. Nc2 {[%clk 0:00:04]}  Nxe6 {[%clk 0:00:14]} 32. fxe6 {[%clk 0:00:04]}  Qxe6 {[%clk 0:00:15]} 33. Nxe3 {[%clk 0:00:05]}  fxe3 {[%clk 0:00:15]} 34. Qe2 {[%clk 0:00:06]}  Nc4 {[%clk 0:00:13]} 35. b3 {[%clk 0:00:05]}  Qxe4+ {[%clk 0:00:12]} 36. Qd3 {[%clk 0:00:03]}  Qxd3+ {[%clk 0:00:08]} 37. Rxd3 {[%clk 0:00:04]}  Ne5 {[%clk 0:00:07]} 38. Rxe3 {[%clk 0:00:04]}  Rd7 {[%clk 0:00:07]} 39. Re1 {[%clk 0:00:03]}  Rfd8 {[%clk 0:00:08]} 40. Rhe2 {[%clk 0:00:03]}  Rd1+ {[%clk 0:00:08]} 41. Kc2 {[%clk 0:00:04]}  Rxe1 {[%clk 0:00:07]} 42. Rxe1 {[%clk 0:00:05]}  g5 {[%clk 0:00:07]} 43. Bg3 {[%clk 0:00:04]}  Nf3 {[%clk 0:00:07]} 44. Re7+ {[%clk 0:00:04]}  Kg6 {[%clk 0:00:07]} 45. Re2 {[%clk 0:00:04]}  f5 {[%clk 0:00:06]} 46. Bc7 {[%clk 0:00:04]}  Rd7 {[%clk 0:00:06]} 47. Bb6 {[%clk 0:00:04]}  f4 {[%clk 0:00:06]} 48. a4 {[%clk 0:00:05]}  Kf5 {[%clk 0:00:06]} 49. axb5 {[%clk 0:00:05]}  cxb5 {[%clk 0:00:07]} 50. c4 {[%clk 0:00:06]}  Nd4+ {[%clk 0:00:07]} 51. Bxd4 {[%clk 0:00:05]}  Rxd4 {[%clk 0:00:07]} 52. Kc3 {[%clk 0:00:06]}  Re4 {[%clk 0:00:07]} 53. Rd2 {[%clk 0:00:05]}  f3 {[%clk 0:00:07]} 54. c5 {[%clk 0:00:06]}  Re2 {[%clk 0:00:06]} 55. Rd8 {[%clk 0:00:04]} 1-0


[Site "https://www.chess.com"]

[Event "Titled Tuesday Blitz December 13 Early 2022"]
[White "Kostiukov, Alexandr"]
[Black "Goltseva, Ekaterina"]
[WhiteFideId "14108100"]
[BlackFideId "24173770"]
[WhiteElo "2202"]
[BlackElo "2200"]
[Result "1/2-1/2"]
[Round "02"]
[TimeControl "180+1"]
[Date "2022.12.14"]
[WhiteClock "0:00:56"]
[BlackClock "0:00:18"]

1. g3 {[%clk 0:02:58]}  d5 {[%clk 0:01:51]} 2. Bg2 {[%clk 0:02:57]}  Nf6 {[%clk 0:01:52]} 3. d3 {[%clk 0:02:57]}  c5 {[%clk 0:01:51]} 4. e4 {[%clk 0:02:57]}  dxe4 {[%clk 0:01:47]} 5. dxe4 {[%clk 0:02:57]}  Qxd1+ {[%clk 0:01:47]} 6. Kxd1 {[%clk 0:02:58]}  Nc6 {[%clk 0:01:46]} 7. f3 {[%clk 0:02:58]}  Be6 {[%clk 0:01:41]} 8. Be3 {[%clk 0:02:58]}  O-O-O+ {[%clk 0:01:39]} 9. Nd2 {[%clk 0:02:58]}  b6 {[%clk 0:01:28]} 10. Bh3 {[%clk 0:02:57]}  Bxh3 {[%clk 0:01:26]} 11. Nxh3 {[%clk 0:02:58]}  e6 {[%clk 0:01:20]} 12. c3 {[%clk 0:02:56]}  Be7 {[%clk 0:01:17]} 13. Ke2 {[%clk 0:02:56]}  Ne5 {[%clk 0:01:15]} 14. Nf2 {[%clk 0:02:49]}  h5 {[%clk 0:01:13]} 15. h3 {[%clk 0:02:49]}  Rd7 {[%clk 0:01:09]} 16. f4 {[%clk 0:02:44]}  Nc6 {[%clk 0:01:08]} 17. Nc4 {[%clk 0:02:20]}  Rhd8 {[%clk 0:00:54]} 18. a4 {[%clk 0:02:18]}  Kb7 {[%clk 0:00:48]} 19. g4 {[%clk 0:02:16]}  Rh8 {[%clk 0:00:34]} 20. g5 {[%clk 0:02:12]}  Ne8 {[%clk 0:00:34]} 21. Nd3 {[%clk 0:02:08]}  f6 {[%clk 0:00:33]} 22. h4 {[%clk 0:02:06]}  Nd6 {[%clk 0:00:32]} 23. Nxd6+ {[%clk 0:01:58]}  Rxd6 {[%clk 0:00:28]} 24. Rad1 {[%clk 0:01:58]}  c4 {[%clk 0:00:28]} 25. Nf2 {[%clk 0:01:55]}  Rhd8 {[%clk 0:00:27]} 26. Rxd6 {[%clk 0:01:53]}  Bxd6 {[%clk 0:00:28]} 27. Rg1 {[%clk 0:01:50]}  Rf8 {[%clk 0:00:28]} 28. gxf6 {[%clk 0:01:49]}  gxf6 {[%clk 0:00:28]} 29. Rg7+ {[%clk 0:01:49]}  Ka6 {[%clk 0:00:28]} 30. Rh7 {[%clk 0:01:45]}  Ka5 {[%clk 0:00:28]} 31. Rxh5+ {[%clk 0:01:41]}  Kxa4 {[%clk 0:00:29]} 32. Kd2 {[%clk 0:01:35]}  Kb3 {[%clk 0:00:29]} 33. Nd1 {[%clk 0:01:34]}  Rg8 {[%clk 0:00:28]} 34. Bxb6 {[%clk 0:01:21]}  axb6 {[%clk 0:00:24]} 35. Rb5+ {[%clk 0:01:21]}  Ka4 {[%clk 0:00:24]} 36. Rxb6 {[%clk 0:01:22]}  Bxf4+ {[%clk 0:00:25]} 37. Ke2 {[%clk 0:01:19]}  Ne5 {[%clk 0:00:25]} 38. Rxe6 {[%clk 0:01:08]}  Rg2+ {[%clk 0:00:25]} 39. Kf1 {[%clk 0:01:06]}  Rd2 {[%clk 0:00:23]} 40. Nf2 {[%clk 0:01:03]}  Rxb2 {[%clk 0:00:18]} 41. Rxf6 {[%clk 0:01:02]}  Rxf2+ {[%clk 0:00:18]} 42. Kxf2 {[%clk 0:01:00]}  Ng4+ {[%clk 0:00:19]} 43. Kf3 {[%clk 0:01:01]}  Nxf6 {[%clk 0:00:19]} 44. Kxf4 {[%clk 0:01:02]}  Kb3 {[%clk 0:00:19]} 45. e5 {[%clk 0:00:59]}  Nd7 {[%clk 0:00:18]} 46. e6 {[%clk 0:00:58]}  Nf8 {[%clk 0:00:16]} 47. Kf5 {[%clk 0:00:56]}  Nxe6 {[%clk 0:00:14]} 48. Kxe6 {[%clk 0:00:55]}  Kxc3 {[%clk 0:00:15]} 49. h5 {[%clk 0:00:55]}  Kd2 {[%clk 0:00:15]} 50. h6 {[%clk 0:00:55]}  c3 {[%clk 0:00:15]} 51. h7 {[%clk 0:00:56]}  c2 {[%clk 0:00:16]} 52. h8=Q {[%clk 0:00:57]}  c1=Q {[%clk 0:00:17]} 53. Qh6+ {[%clk 0:00:57]}  Kc2 {[%clk 0:00:17]} 54. Qxc1+ {[%clk 0:00:56]}  Kxc1 {[%clk 0:00:18]} 1/2-1/2


[Site "https://www.chess.com"]

[Event "Titled Tuesday Blitz December 13 Early 2022"]
[White "Kozlov, Gennady"]
[Black "Donskov, Anatoly"]
[WhiteFideId "4191668"]
[BlackFideId "24143413"]
[WhiteElo "2356"]
[BlackElo "2219"]
[Result "1-0"]
[Round "02"]
[TimeControl "180+1"]
[Date "2022.12.14"]
[WhiteClock "0:01:40"]
[BlackClock "0:00:07"]

1. b3 {[%clk 0:03:00]}  Nf6 {[%clk 0:02:59]} 2. Bb2 {[%clk 0:03:01]}  g6 {[%clk 0:03:00]} 3. e3 {[%clk 0:03:01]}  Bg7 {[%clk 0:03:00]} 4. f4 {[%clk 0:03:02]}  O-O {[%clk 0:03:00]} 5. Nf3 {[%clk 0:03:03]}  b6 {[%clk 0:03:00]} 6. Be2 {[%clk 0:03:03]}  Bb7 {[%clk 0:03:00]} 7. O-O {[%clk 0:03:04]}  c5 {[%clk 0:03:00]} 8. a4 {[%clk 0:03:03]}  d6 {[%clk 0:02:59]} 9. Na3 {[%clk 0:03:02]}  Nbd7 {[%clk 0:02:59]} 10. Rb1 {[%clk 0:03:02]}  Re8 {[%clk 0:02:58]} 11. d3 {[%clk 0:03:01]}  e5 {[%clk 0:02:55]} 12. fxe5 {[%clk 0:03:02]}  dxe5 {[%clk 0:02:55]} 13. e4 {[%clk 0:03:00]}  a6 {[%clk 0:02:48]} 14. Bc1 {[%clk 0:02:57]}  Qc7 {[%clk 0:02:44]} 15. Bd2 {[%clk 0:02:52]}  Nb8 {[%clk 0:02:34]} 16. Qe1 {[%clk 0:02:52]}  Nc6 {[%clk 0:02:34]} 17. Qg3 {[%clk 0:02:49]}  Rad8 {[%clk 0:02:28]} 18. Bc3 {[%clk 0:02:47]}  Nh5 {[%clk 0:02:25]} 19. Qg5 {[%clk 0:02:46]}  h6 {[%clk 0:02:20]} 20. Qh4 {[%clk 0:02:45]}  Nf4 {[%clk 0:02:14]} 21. Bd1 {[%clk 0:02:44]}  Ne6 {[%clk 0:02:01]} 22. Nc4 {[%clk 0:02:41]}  Ned4 {[%clk 0:02:00]} 23. Nxd4 {[%clk 0:02:39]}  Nxd4 {[%clk 0:01:56]} 24. Bxd4 {[%clk 0:02:38]}  cxd4 {[%clk 0:01:55]} 25. Rf2 {[%clk 0:02:34]}  b5 {[%clk 0:01:54]} 26. axb5 {[%clk 0:02:32]}  axb5 {[%clk 0:01:55]} 27. Nd2 {[%clk 0:02:32]}  Qc3 {[%clk 0:01:42]} 28. Nf1 {[%clk 0:02:30]}  Ra8 {[%clk 0:01:34]} 29. Ng3 {[%clk 0:02:29]}  b4 {[%clk 0:01:16]} 30. Qg4 {[%clk 0:02:24]}  Bc8 {[%clk 0:01:08]} 31. Qh4 {[%clk 0:02:21]}  Be6 {[%clk 0:01:08]} 32. Rf1 {[%clk 0:02:18]}  Rac8 {[%clk 0:00:51]} 33. Ne2 {[%clk 0:02:16]}  Qd2 {[%clk 0:00:48]} 34. Ra1 {[%clk 0:02:16]}  Rc7 {[%clk 0:00:34]} 35. Ra6 {[%clk 0:02:13]}  Kh7 {[%clk 0:00:33]} 36. Ng3 {[%clk 0:02:05]}  Rxc2 {[%clk 0:00:19]} 37. Bxc2 {[%clk 0:02:04]}  Qxc2 {[%clk 0:00:20]} 38. Rxe6 {[%clk 0:01:56]}  Rxe6 {[%clk 0:00:18]} 39. Rxf7 {[%clk 0:01:56]}  Qxd3 {[%clk 0:00:16]} 40. h3 {[%clk 0:01:49]}  Qd1+ {[%clk 0:00:16]} 41. Kh2 {[%clk 0:01:48]}  Qxb3 {[%clk 0:00:17]} 42. Qd8 {[%clk 0:01:42]}  Qa4 {[%clk 0:00:07]} 43. Qf8 {[%clk 0:01:40]} 1-0


[Site "https://www.chess.com"]

[Event "Titled Tuesday Blitz December 13 Early 2022"]
[White "Krishnan, Varun"]
[Black "Alexakis, Dimitris"]
[WhiteFideId "5054508"]
[BlackFideId "4277023"]
[WhiteElo "2542"]
[BlackElo "2470"]
[Result "0-1"]
[Round "02"]
[TimeControl "180+1"]
[Date "2022.12.14"]
[WhiteClock "0:00:03"]
[BlackClock "0:00:23"]

1. e4 {[%clk 0:02:59]}  b6 {[%clk 0:02:58]} 2. d4 {[%clk 0:02:58]}  Bb7 {[%clk 0:02:58]} 3. Bd3 {[%clk 0:02:56]}  e6 {[%clk 0:02:58]} 4. Ne2 {[%clk 0:02:55]}  d5 {[%clk 0:02:58]} 5. Nd2 {[%clk 0:02:54]}  c5 {[%clk 0:02:52]} 6. c3 {[%clk 0:02:44]}  Nc6 {[%clk 0:02:27]} 7. a3 {[%clk 0:02:38]}  cxd4 {[%clk 0:02:23]} 8. cxd4 {[%clk 0:02:37]}  dxe4 {[%clk 0:02:23]} 9. Nxe4 {[%clk 0:02:35]}  Be7 {[%clk 0:02:21]} 10. O-O {[%clk 0:02:32]}  Nf6 {[%clk 0:02:21]} 11. b4 {[%clk 0:02:15]}  O-O {[%clk 0:02:07]} 12. Bb2 {[%clk 0:02:13]}  Rc8 {[%clk 0:01:59]} 13. Rc1 {[%clk 0:02:09]}  Qd7 {[%clk 0:01:56]} 14. Qa4 {[%clk 0:01:49]}  Rfd8 {[%clk 0:01:14]} 15. Ng5 {[%clk 0:01:48]}  Nxd4 {[%clk 0:01:04]} 16. Qxd7 {[%clk 0:01:46]}  Nxe2+ {[%clk 0:01:04]} 17. Bxe2 {[%clk 0:01:47]}  Rxd7 {[%clk 0:01:05]} 18. Nf3 {[%clk 0:01:33]}  Nd5 {[%clk 0:00:58]} 19. Ne5 {[%clk 0:01:27]}  Rdc7 {[%clk 0:00:59]} 20. Bf3 {[%clk 0:01:23]}  f6 {[%clk 0:00:58]} 21. Nd3 {[%clk 0:01:22]}  Kf7 {[%clk 0:00:59]} 22. h3 {[%clk 0:01:18]}  Rc2 {[%clk 0:00:55]} 23. Rxc2 {[%clk 0:01:14]}  Rxc2 {[%clk 0:00:56]} 24. Rc1 {[%clk 0:01:12]}  Rxc1+ {[%clk 0:00:56]} 25. Bxc1 {[%clk 0:01:11]}  Ba6 {[%clk 0:00:55]} 26. Nf4 {[%clk 0:01:04]}  Bc4 {[%clk 0:00:50]} 27. Nxd5 {[%clk 0:01:01]}  Bxd5 {[%clk 0:00:51]} 28. Bxd5 {[%clk 0:01:00]}  exd5 {[%clk 0:00:52]} 29. f4 {[%clk 0:00:57]}  Ke6 {[%clk 0:00:52]} 30. Kf2 {[%clk 0:00:57]}  a5 {[%clk 0:00:34]} 31. bxa5 {[%clk 0:00:49]}  bxa5 {[%clk 0:00:35]} 32. Ke3 {[%clk 0:00:49]}  Bc5+ {[%clk 0:00:34]} 33. Kd3 {[%clk 0:00:49]}  a4 {[%clk 0:00:35]} 34. g4 {[%clk 0:00:45]}  h5 {[%clk 0:00:35]} 35. Bb2 {[%clk 0:00:43]}  hxg4 {[%clk 0:00:32]} 36. hxg4 {[%clk 0:00:42]}  g6 {[%clk 0:00:33]} 37. Bc1 {[%clk 0:00:29]}  f5 {[%clk 0:00:30]} 38. g5 {[%clk 0:00:29]}  d4 {[%clk 0:00:30]} 39. Kc4 {[%clk 0:00:28]}  Bb6 {[%clk 0:00:28]} 40. Bd2 {[%clk 0:00:26]}  Kd6 {[%clk 0:00:27]} 41. Bb4+ {[%clk 0:00:26]}  Kc6 {[%clk 0:00:27]} 42. Bd2 {[%clk 0:00:26]}  Bc5 {[%clk 0:00:27]} 43. Bc1 {[%clk 0:00:26]}  d3 {[%clk 0:00:23]} 44. Kxd3 {[%clk 0:00:18]}  Kd5 {[%clk 0:00:24]} 45. Bb2 {[%clk 0:00:18]}  Bd6 {[%clk 0:00:24]} 46. Bc1 {[%clk 0:00:18]}  Be7 {[%clk 0:00:25]} 47. Bb2 {[%clk 0:00:17]}  Bc5 {[%clk 0:00:25]} 48. Bc1 {[%clk 0:00:14]}  Bd6 {[%clk 0:00:25]} 49. Kc3 {[%clk 0:00:05]}  Ke4 {[%clk 0:00:25]} 50. Kc4 {[%clk 0:00:02]}  Bxf4 {[%clk 0:00:26]} 51. Bb2 {[%clk 0:00:03]}  Bd2 {[%clk 0:00:23]} 52. Kb5 {[%clk 0:00:03]}  f4 {[%clk 0:00:23]} 53. Kxa4 {[%clk 0:00:03]}  f3 {[%clk 0:00:23]} 0-1


[Site "https://www.chess.com"]